bitfinex/quotes_ETHUSD_20240715
["timestamp","ask_amount","ask_price","bid_price","bid_amount"]
[1721030032250,4.5,3363.4,3363.3,5.9465]
[1721030032504,6.55391774,3363.4,3363.3,5.9465]
[1721030032612,5.74609815,3363.4,3363.3,5.9465]
[1721030032816,6.55390107,3363.4,3363.3,5.9465]
[1721030033225,7.58293364,3363.4,3363.3,5.9465]
[1721030033425,5.74614245,3363.4,3363.3,5.9465]
[1721030033866,7.58292422,3363.4,3363.3,5.9465]
[1721030034156,6.55393854,3363.4,3363.3,5.9465]
[1721030034310,5.74614245,3363.4,3363.3,5.9465]
[1721030034511,6.55394645,3363.4,3363.3,5.9465]
[1721030035150,4.5,3363.4,3363.3,5.9465]
[1721030035350,5.74614245,3363.4,3363.3,5.9465]
[1721030035647,6.55394365,3363.4,3363.3,5.9465]
[1721030036050,3.93461185,3363.4,3363.3,5.9465]
[1721030036277,4.5,3363.4,3363.3,5.9465]
[1721030036462,5.43461185,3363.4,3363.3,5.9465]
[1721030036911,5.43460913,3363.4,3363.3,5.9465]
[1721030037569,4.5,3363.4,3363.3,5.9465]
[1721030037754,6.55394815,3363.4,3363.3,5.9465]
[1721030038185,5.43466322,3363.4,3363.3,5.9465]
[1721030039055,4.5,3363.4,3363.3,5.9465]
[1721030039252,5.74614245,3363.4,3363.3,5.9465]
[1721030039674,4.5,3363.4,3363.3,5.9465]
[1721030040056,4.12245133,3363.4,3363.3,5.9465]
[1721030040256,6.86859378,3363.4,3363.3,5.9465]
[1721030040490,8.70539463,3363.4,3363.3,5.9465]
[1721030040855,7.67641373,3363.4,3363.3,5.9465]
[1721030041065,7.67645621,3363.4,3363.3,5.9465]
[1721030041264,7.4592357,3363.4,3363.3,5.9465]
[1721030041573,9.01699653,3363.4,3363.3,5.9465]
[1721030042457,7.45927814,3363.4,3363.3,5.9465]
[1721030042891,9.01699653,3363.4,3363.3,5.9465]
[1721030043299,7.45927814,3363.4,3363.3,5.9465]
[1721030043499,7.67641502,3363.4,3363.3,5.9465]
[1721030043862,9.01695276,3363.4,3363.3,5.9465]
[1721030044064,7.45925795,3363.4,3363.3,5.9465]
[1721030044276,6.43027967,3363.4,3363.3,5.9465]
[1721030044465,9.01690375,3363.4,3363.3,5.9465]
[1721030044675,11.41290375,3363.4,3363.3,5.9465]
[1721030045578,9.85525835,3363.4,3363.3,5.9465]
[1721030047179,8.01845133,3363.4,3363.3,5.9465]
[1721030047371,10.05629665,3363.4,3363.3,5.9465]
[1721030047669,12.78399821,3363.4,3363.3,5.9465]
[1721030047896,13.33399821,3363.4,3363.3,5.9465]
[1721030048096,14.17290662,3363.4,3363.3,5.9465]
[1721030048318,16.01008896,3363.4,3363.3,5.9465]
[1721030048914,18.19080035,3363.4,3363.3,5.9465]
[1721030049364,16.01008896,3363.4,3363.3,5.9465]
[1721030049569,18.19080035,3363.4,3363.3,5.9465]
[1721030050384,16.01008896,3363.4,3363.3,5.9465]
[1721030050583,14.17290662,3363.4,3363.3,5.9465]
[1721030050804,16.01017895,3363.4,3363.3,5.9465]
[1721030053881,14.98094907,3363.4,3363.3,5.9465]
[1721030054081,16.01015392,3363.4,3363.3,5.9465]
[1721030054281,14.98093507,3363.4,3363.3,5.9465]
[1721030054523,16.0101251,3363.4,3363.3,5.9465]
[1721030056413,16.32054809,3363.4,3363.3,5.9465]
[1721030057031,14.48332961,3363.4,3363.3,5.9465]
[1721030057179,16.32068414,3363.4,3363.3,5.9465]
[1721030059084,21.17500765,3363.4,3363.3,5.9465]
[1721030059280,18.99654414,3363.4,3363.3,5.9465]
[1721030060335,17.15918961,3363.4,3363.3,5.9465]
[1721030060618,18.99647594,3363.4,3363.3,5.9465]
[1721030062220,1.5,3361.8,3361.4,1.7]
[1721030062417,1.5,3361.9,3361.4,1.7]
[1721030062418,1.5,3361.6,3361.4,1.7]
[1721030062655,4.5,3361.8,3361.5,0.05260794]
[1721030062784,4.5,3361.8,3361.2,0.3305]
[1721030063099,4.5,3361.8,3361.3,0.05269416]
[1721030063301,4.5,3361.8,3361.3,0.20831942]
[1721030063812,1.5,3361.7,3361.3,0.20831942]
[1721030064130,4.5,3361.7,3361.2,0.3305]
[1721030064486,4.5,3361.7,3361.3,0.05272537]
[1721030064684,1.5,3361.5,3361.2,0.3305]
[1721030065127,1.5,3361.5,3361.3,0.05273828]
[1721030065302,1.5,3361.5,3361.2,0.3305]
[1721030065502,1.5,3361.5,3361.4,0.05269518]
[1721030065713,1.5,3361.5,3361.2,0.3305]
[1721030066032,1.5,3361.5,3361.4,0.05269518]
[1721030066227,1.5,3361.5,3361.3,0.05273828]
[1721030066437,1.5,3361.5,3361.2,0.3305]
[1721030066843,1.5,3361.5,3361.3,0.05273828]
[1721030067339,1.5,3361.5,3361.2,0.3305]
[1721030067665,1.5,3361.5,3361.4,0.05269518]
[1721030067844,1.5,3361.5,3361.3,0.05273828]
[1721030068024,1.5,3361.5,3361.2,0.3305]
[1721030068403,3.0,3361.6,3361.3,0.05273828]
[1721030068747,3.0,3361.6,3361.2,0.20305]
[1721030068945,3.0,3361.6,3361.4,0.05269518]
[1721030069119,3.0,3361.8,3361.2,0.20305]
[1721030069446,3.0,3362.1,3361.5,0.3305]
[1721030069610,3.0,3362.1,3361.6,0.20305]
[1721030069805,3.0,3362.1,3361.6,0.25570633]
[1721030070009,3.0,3362.1,3361.6,0.20305]
[1721030070444,7.34,3362.2,3362.1,1.7]
[1721030070646,2.43206171,3362.8,3362.2,0.3305]
[1721030070647,1.5,3362.5,3362.2,0.3305]
[1721030070843,1.5,3362.5,3362.1,1.87]
[1721030071512,1.5,3362.6,3362.1,1.87]
[1721030072042,1.5,3362.5,3362.1,1.87]
[1721030072244,1.5,3362.4,3362.1,1.87]
[1721030072653,4.5,3362.4,3362.1,1.87]
[1721030073350,4.5,3362.4,3362.2,0.187]
[1721030073515,3.0,3362.4,3362.2,0.187]
[1721030073717,3.0,3362.4,3362.1,1.7]
[1721030073718,1.5,3362.4,3362.1,1.7]
[1721030073929,1.5,3362.2,3361.7,1.7]
[1721030074235,1.5,3362.2,3361.4,0.3305]
[1721030074236,1.5,3362.1,3361.4,0.3305]
[1721030074638,1.5,3361.8,3361.5,0.05269944]
[1721030074964,1.5,3361.8,3361.3,1.7]
[1721030075125,1.5,3361.7,3361.3,1.90305]
[1721030075457,1.5,3361.8,3361.4,0.05274254]
[1721030075623,4.5,3362.0,3361.4,0.05274254]
[1721030075828,1.5,3362.0,3361.3,1.90305]
[1721030076060,4.5,3362.0,3361.3,1.90305]
[1721030076244,4.5,3362.0,3361.4,0.19625369]
[1721030077549,1.5,3361.9,3361.4,0.19625369]
[1721030078023,1.5,3361.7,3361.3,1.7]
[1721030078474,1.5,3361.7,3361.4,0.05274254]
[1721030078760,1.5,3361.7,3361.3,1.7]
[1721030079441,1.5,3361.6,3361.3,1.7]
[1721030080134,1.5,3361.4,3360.9,1.7]
[1721030080344,3.0,3361.4,3360.9,1.7]
[1721030080529,1.5,3361.4,3360.9,2.20105]
[1721030080730,3.0,3361.6,3360.9,1.7]
[1721030081037,0.62267925,3361.7,3361.0,0.05949626]
[1721030081237,8.84,3361.8,3361.0,0.05949626]
[1721030081238,9.46267925,3361.8,3361.0,0.05949626]
[1721030081456,4.5,3361.7,3360.9,1.7]
[1721030081653,4.5,3361.7,3361.1,0.05122267]
[1721030081865,4.5,3361.7,3361.3,1.7]
[1721030081866,3.0,3361.7,3361.3,1.7]
[1721030082276,7.34,3361.8,3361.3,1.7]
[1721030082440,7.34,3361.8,3361.3,1.75949027]
[1721030082958,7.34,3361.8,3361.4,0.05109334]
[1721030083137,7.34,3361.8,3361.3,1.75949027]
[1721030083138,7.34,3361.8,3361.5,0.21410836]
[1721030084052,2.12267925,3362.0,3361.5,0.21410836]
[1721030084450,0.62267925,3361.9,3361.3,1.7]
[1721030084652,3.0,3361.9,3361.3,1.7]
[1721030085050,3.0,3362.0,3361.3,1.75948782]
[1721030085368,3.62267925,3362.1,3361.7,1.7]
[1721030085583,3.62267925,3362.1,3361.8,5.9492]
[1721030085584,0.62267925,3362.0,3361.8,5.9492]
[1721030085761,3.62267925,3362.1,3361.8,5.9492]
[1721030085961,3.62267925,3362.1,3361.9,0.05087784]
[1721030087145,5.12267925,3362.1,3361.9,0.05087784]
[1721030087345,0.62267925,3362.0,3361.9,0.05087784]
[1721030087544,5.12267925,3362.1,3361.9,5.99987784]
[1721030087744,0.62267925,3362.0,3361.9,5.99987784]
[1721030088144,5.12267925,3362.1,3361.9,5.99987784]
[1721030088481,0.62267925,3362.0,3361.9,5.99987784]
[1721030089567,0.93401888,3362.0,3361.9,5.99987784]
[1721030089778,0.93401888,3362.0,3361.9,5.949]
[1721030089957,2.43401888,3362.0,3361.9,5.949]
[1721030090149,5.43401888,3362.0,3361.9,5.949]
[1721030091086,4.5,3362.0,3361.9,5.949]
[1721030091302,1.5,3362.0,3361.9,5.949]
[1721030091456,4.5,3362.0,3361.9,5.949]
[1721030091659,0.93401888,3362.1,3361.9,5.949]
[1721030092097,1.5,3362.0,3361.9,5.949]
[1721030092256,2.43401888,3362.0,3361.9,5.949]
[1721030092659,4.5,3362.0,3361.9,5.949]
[1721030093689,5.43599181,3362.0,3361.9,5.949]
[1721030093891,5.43610706,3362.0,3361.9,5.949]
[1721030094399,4.5,3362.0,3361.9,5.949]
[1721030095866,6.77465506,3362.0,3361.9,5.949]
[1721030096199,4.5,3362.0,3361.9,5.949]
[1721030096503,5.43619525,3362.0,3361.9,5.949]
[1721030096710,6.93619525,3362.0,3361.9,5.949]
[1721030097008,5.43619525,3362.0,3361.9,5.949]
[1721030097693,10.76765471,3362.0,3361.9,5.949]
[1721030097898,12.73445238,3362.0,3361.9,5.949]
[1721030098400,10.76765471,3362.0,3361.9,5.949]
[1721030098973,11.7969682,3362.0,3361.9,5.949]
[1721030099770,12.11213277,3362.0,3361.9,5.949]
[1721030100909,9.05160969,3362.0,3361.9,5.949]
[1721030101215,10.55160969,3362.0,3361.9,5.949]
[1721030101436,11.49749333,3362.0,3361.9,5.949]
[1721030101708,10.55171932,3362.0,3361.9,5.949]
[1721030102472,12.11241646,3362.0,3361.9,5.949]
[1721030102703,10.55171932,3362.0,3361.9,5.949]
[1721030104583,9.52230381,3362.0,3361.9,5.949]
[1721030104793,10.55172292,3362.0,3361.9,5.949]
[1721030105112,10.55163859,3362.0,3361.9,5.949]
[1721030107584,9.52230381,3362.0,3361.9,5.949]
[1721030107782,12.42523237,3362.0,3361.9,5.949]
[1721030108408,12.42522436,3362.0,3361.9,5.949]
[1721030110407,13.51022436,3362.0,3361.9,5.949]
[1721030110716,11.63671887,3362.0,3361.9,5.949]
[1721030111115,10.60730381,3362.0,3361.9,5.949]
[1721030111315,10.60730381,3362.0,3360.8,1.7]
[1721030111316,10.3383368,3362.0,3360.8,1.7]
[1721030111520,2.12427247,3361.2,3360.8,1.7]
[1721030111723,1.5,3361.2,3360.8,1.7]
[1721030111930,2.12427247,3361.2,3360.9,0.36301319]
[1721030112227,2.12427247,3361.2,3360.9,0.31155]
[1721030112400,0.62427247,3361.1,3360.9,0.31155]
[1721030112584,2.12427247,3361.2,3361.0,0.05142007]
[1721030112988,2.12427247,3361.2,3360.9,0.31155]
[1721030113398,2.12427247,3361.2,3361.0,0.05142007]
[1721030113703,2.12427247,3361.2,3360.9,0.31155]
[1721030115190,2.12427247,3361.2,3361.0,0.05143722]
[1721030117029,2.12427247,3361.2,3360.9,0.31155]
[1721030117196,2.12427247,3361.2,3361.1,0.05139411]
[1721030117523,2.12427247,3361.2,3360.9,0.31155]
[1721030118091,2.12427247,3361.2,3361.0,0.05143615]
[1721030118318,2.12427247,3361.2,3360.9,0.31155]
[1721030118728,2.12427247,3361.2,3361.0,0.05143615]
[1721030119245,2.12427247,3361.2,3360.9,0.31155]
[1721030119446,2.12427247,3361.2,3361.1,0.04974981]
[1721030119640,2.12427247,3361.2,3360.9,0.31155]
[1721030120352,2.12427247,3361.2,3360.8,1.7]
[1721030120353,1.5,3361.0,3360.8,1.7]
[1721030120549,3.62427247,3361.0,3360.4,2.16643792]
[1721030120843,0.62428491,3360.9,3360.5,0.05000962]
[1721030121019,0.62428491,3360.9,3360.5,0.38015437]
[1721030122828,3.0,3361.2,3360.5,0.38015437]
[1721030122829,0.62428491,3361.0,3360.5,0.38015437]
[1721030124058,2.2926,3361.3,3360.6,1.085]
[1721030124210,2.2926,3361.3,3360.6,0.05003722]
[1721030124211,0.62401481,3361.0,3360.6,0.05003722]
[1721030124409,0.62401481,3361.0,3360.7,0.3165182]
[1721030124614,0.62401481,3361.0,3360.7,0.36650479]
[1721030124852,0.62401481,3361.0,3360.7,0.3165182]
[1721030125018,0.62401481,3361.0,3360.8,0.04994347]
[1721030125334,0.62401481,3361.0,3360.7,0.3165182]
[1721030125846,0.62401481,3361.0,3360.8,0.04994668]
[1721030126051,0.62401481,3361.0,3360.7,0.3165182]
[1721030126346,0.62401481,3361.1,3360.7,0.3165182]
[1721030127057,5.12401481,3361.2,3360.7,0.3165182]
[1721030127272,5.12401481,3361.2,3360.4,2.785]
[1721030127273,1.5,3361.1,3360.4,1.7]
[1721030127563,2.12388193,3361.1,3360.4,1.7]
[1721030127716,1.5,3361.1,3360.5,0.05007606]
[1721030127921,2.12385997,3361.1,3360.5,0.05007606]
[1721030128117,0.62385997,3361.1,3360.5,1.46557606]
[1721030128470,3.0,3361.2,3360.8,1.7]
[1721030129128,3.62385997,3361.2,3360.8,1.7]
[1721030129331,0.62385997,3361.1,3360.8,1.7]
[1721030131365,3.62385997,3361.2,3360.8,1.7]
[1721030131518,3.0,3361.2,3360.9,0.20760584]
[1721030131723,0.62385997,3361.3,3360.9,0.20760584]
[1721030134068,0.62385997,3361.2,3360.9,0.20760584]
[1721030134370,0.62385997,3361.2,3360.3,0.05949885]
[1721030134371,2.464,3361.0,3360.4,1.7]
[1721030134677,3.08785997,3361.0,3360.5,0.05006213]
[1721030135378,2.464,3361.0,3360.5,0.05006213]
[1721030135559,3.08785997,3361.0,3360.5,0.05006213]
[1721030140040,0.62385997,3360.9,3360.5,0.05006213]
[1721030140870,3.08785997,3361.0,3360.5,0.05006213]
[1721030141059,0.62385997,3360.9,3360.5,0.05006213]
[1721030142739,2.464,3361.0,3360.5,0.05006213]
[1721030142740,3.08785997,3361.0,3360.5,0.05006213]
[1721030143472,3.08823747,3361.0,3360.5,0.05006213]
[1721030143857,0.62423747,3361.0,3360.8,1.7]
[1721030144065,0.62423747,3361.1,3360.8,1.7]
[1721030144641,0.62423747,3360.9,3360.8,1.7]
[1721030145040,2.2723,3360.8,3360.4,1.7]
[1721030145485,2.89653747,3360.8,3360.5,0.05005251]
[1721030145980,2.2723,3360.8,3360.5,0.05005251]
[1721030146780,0.6245287,3360.9,3360.5,0.05005251]
[1721030146984,0.6245287,3360.9,3360.8,1.7]
[1721030147390,0.6245287,3360.9,3360.8,1.74992313]
[1721030147691,0.6245287,3361.0,3360.8,1.7]
[1721030148196,2.1245287,3361.0,3360.8,1.7]
[1721030148958,0.6245287,3360.9,3360.8,1.7]
[1721030149701,2.2669,3361.1,3360.8,1.7]
[1721030149868,0.62461069,3360.9,3360.8,1.7]
[1721030150697,0.62465145,3360.9,3360.8,1.7]
[1721030150899,2.43691604,3361.0,3360.8,1.7]
[1721030151268,2.43691604,3361.0,3360.4,1.7]
[1721030151486,0.62472336,3360.8,3360.4,1.7]
[1721030151692,0.62472336,3360.8,3360.5,0.05009107]
[1721030153309,0.62475658,3360.8,3360.5,0.05009107]
[1721030155908,0.62475658,3360.9,3360.8,1.7]
[1721030156277,2.43713488,3361.0,3360.8,1.7]
[1721030156807,0.93736019,3361.0,3360.8,1.7]
[1721030157607,0.6249724,3360.9,3360.8,1.7]
[1721030159107,0.93736019,3361.0,3360.8,1.7]
[1721030159108,0.6249724,3361.0,3360.8,1.7]
[1721030159475,0.62494519,3361.0,3360.9,0.04991857]
[1721030159674,0.62494519,3361.0,3360.8,1.7]
[1721030159895,0.62494519,3361.0,3360.9,0.04991857]
[1721030160310,0.62494519,3361.0,3360.8,1.7]
[1721030160691,0.62494519,3361.0,3360.9,0.04991857]
[1721030161141,0.62494519,3361.0,3360.8,1.7]
[1721030161420,3.20431779,3361.1,3360.9,0.04991857]
[1721030161595,3.20431779,3361.1,3360.8,1.7]
[1721030161790,0.62498758,3360.9,3360.8,1.7]
[1721030164633,0.62498758,3360.9,3360.8,1.87]
[1721030168645,4.05222597,3361.4,3361.3,1.7]
[1721030168646,3.42715724,3361.4,3361.3,1.7]
[1721030168816,3.42712414,3361.4,3361.3,1.7]
[1721030171910,2.4897,3361.4,3361.3,1.7]
[1721030172414,2.4897,3361.4,3361.3,1.87]
[1721030172940,3.42712414,3361.4,3361.3,1.87]
[1721030173146,3.42712414,3361.4,3361.3,1.7]
[1721030173447,1.5,3361.3,3360.9,1.7]
[1721030173660,2.99796677,3361.0,3360.5,1.7]
[1721030173828,0.62470148,3360.9,3360.5,1.7]
[1721030174006,0.62470148,3360.8,3360.5,1.7]
[1721030174211,3.31030015,3361.0,3360.5,2.7730522]
[1721030174212,0.62470148,3360.9,3360.5,2.7730522]
[1721030176445,2.3908,3360.8,3360.5,2.7730522]
[1721030176609,3.01550148,3360.8,3360.5,2.7730522]
[1721030178714,2.3908,3360.8,3360.5,2.7730522]
[1721030178959,3.7696,3360.7,3360.5,1.7]
[1721030179166,4.39432048,3360.7,3360.5,1.7]
[1721030179316,0.62472048,3360.6,3360.5,1.75951066]
[1721030179516,2.89432048,3360.7,3360.5,3.36745107]
[1721030179757,2.2696,3360.7,3360.5,3.36745107]
[1721030179935,2.89432048,3360.7,3360.5,3.36745107]
[1721030180411,2.89432048,3360.7,3360.5,2.28245107]
[1721030180829,0.62472048,3360.6,3360.5,2.28245107]
[1721030181237,2.89432048,3360.7,3360.5,2.28245107]
[1721030182235,2.89432048,3360.7,3360.5,1.7]
[1721030184728,2.89421105,3360.7,3360.5,1.7]
[1721030185835,2.89421105,3360.7,3360.6,0.05001688]
[1721030188241,2.2696,3360.7,3360.6,0.05001688]
[1721030189547,2.89421105,3360.7,3360.6,0.05001688]
[1721030194590,2.89407442,3360.7,3360.6,0.05001688]
[1721030197266,2.2696,3360.7,3360.6,0.05001688]
[1721030197661,0.62447442,3360.8,3360.6,0.33351857]
[1721030197918,0.93671164,3360.9,3360.6,0.39302448]
[1721030197919,0.62447442,3360.9,3360.6,0.39302448]
[1721030198079,2.2621,3361.0,3360.6,0.39302448]
[1721030198080,2.88657442,3361.0,3360.6,0.39302448]
[1721030198300,2.88657442,3361.0,3360.6,0.33351857]
[1721030198498,2.88657442,3361.0,3360.7,0.31185186]
[1721030198802,2.88657442,3361.0,3360.7,0.36187491]
[1721030198999,0.62447442,3360.9,3360.7,0.36187491]
[1721030199702,0.62447442,3360.9,3360.7,0.05002305]
[1721030199909,0.93671164,3360.9,3360.5,1.7]
[1721030200105,0.93671164,3360.9,3360.8,0.04997993]
[1721030200268,0.93671164,3360.9,3360.5,1.7]
[1721030200469,0.93671164,3360.9,3360.8,0.04997993]
[1721030200696,0.93671164,3360.9,3360.5,1.7]
[1721030200917,0.93671164,3360.9,3360.8,0.04997993]
[1721030201098,0.93671164,3360.9,3360.5,1.7]
[1721030201993,0.93671164,3360.9,3360.6,0.05006618]
[1721030202941,2.82328606,3361.0,3360.6,0.05006618]
[1721030203421,0.93671164,3360.9,3360.6,0.05006618]
[1721030203599,1.96628779,3360.9,3360.6,0.05006618]
[1721030203786,0.93671164,3360.9,3360.6,0.05006618]
[1721030204694,1.88657442,3361.0,3360.6,0.05006618]
[1721030204695,2.82328606,3361.0,3360.6,0.05006618]
[1721030205595,0.93671164,3360.9,3360.6,0.05006618]
[1721030205798,2.82328606,3361.0,3360.6,0.3335728]
[1721030205983,1.88657442,3361.0,3360.6,0.3335728]
[1721030207692,1.88657442,3361.0,3360.9,1.7]
[1721030208028,2.82328606,3361.0,3360.9,1.7]
[1721030208229,3.85283305,3361.0,3360.9,1.7483797]
[1721030208433,3.85283305,3361.0,3360.9,1.7]
[1721030208925,1.88657442,3361.0,3360.9,1.7]
[1721030210397,4.88657442,3361.0,3360.9,1.7483797]
[1721030210627,4.88657442,3361.0,3360.9,1.7]
[1721030210942,5.91613606,3361.0,3360.9,1.7]
[1721030211109,4.88657442,3361.0,3360.9,1.7]
[1721030211294,5.91615105,3361.0,3360.9,1.7]
[1721030212701,7.16466487,3361.0,3360.9,1.7]
[1721030213947,7.16460617,3361.0,3360.9,1.7]
[1721030214523,5.9161755,3361.0,3360.9,1.7]
[1721030215242,7.16460617,3361.0,3360.9,1.7]
[1721030216843,5.66460617,3361.0,3360.9,1.7]
[1721030217143,3.38657442,3361.0,3360.9,1.7]
[1721030217297,5.66485175,3361.0,3360.9,1.7]
[1721030218097,4.41616382,3361.0,3360.9,1.7]
[1721030218298,3.38657442,3361.0,3360.9,1.7]
[1721030219241,4.63526235,3361.0,3360.9,1.7]
[1721030220208,4.63526235,3361.0,3360.9,1.87]
[1721030220209,3.13526235,3361.0,3360.9,1.87]
[1721030220418,1.24868793,3361.0,3360.9,1.87]
[1721030220607,0.62470614,3361.0,3360.9,3.0033797]
[1721030220832,0.62470614,3361.1,3360.9,3.0033797]
[1721030221022,0.62470614,3361.1,3361.0,0.30033797]
[1721030221225,0.62470614,3361.1,3361.0,0.34867455]
[1721030222970,0.62470614,3361.2,3361.0,0.34867455]
[1721030223260,1.24868793,3361.5,3361.0,0.34867455]
[1721030223261,0.62470614,3361.5,3361.3,1.7]
[1721030223764,0.62470614,3361.5,3361.4,0.04808302]
[1721030224114,0.62470614,3361.6,3361.3,1.75949369]
[1721030224327,0.62470614,3361.6,3361.4,0.04808302]
[1721030224569,0.62470614,3361.6,3361.3,1.7]
[1721030224866,3.34884988,3361.7,3361.4,0.240853]
[1721030225170,0.62417388,3361.6,3361.4,0.240853]
[1721030225977,2.4118,3361.7,3361.4,0.240853]
[1721030225978,3.03597388,3361.7,3361.4,0.240853]
[1721030227362,2.4118,3361.7,3361.4,0.240853]
[1721030228870,3.03597388,3361.7,3361.4,0.240853]
[1721030229030,2.4118,3361.7,3361.5,0.3025853]
[1721030229437,0.62417388,3361.8,3361.7,1.7]
[1721030229438,0.6235321,3361.8,3361.7,1.7]
[1721030229671,3.0204321,3362.0,3361.7,1.74777909]
[1721030231167,2.3969,3362.0,3361.7,1.74777909]
[1721030231560,3.0204321,3362.0,3361.7,1.74777909]
[1721030232106,3.0204321,3362.0,3361.7,1.7]
[1721030232320,3.0204321,3362.0,3361.8,0.04773599]
[1721030233053,3.02008152,3362.0,3361.8,0.04773599]
[1721030233468,3.02008152,3362.0,3361.7,1.7]
[1721030235792,2.3969,3362.0,3361.7,1.7]
[1721030236014,3.01998949,3362.0,3361.7,1.90025853]
[1721030236223,2.3969,3362.0,3361.7,1.90025853]
[1721030237524,2.3969,3362.0,3361.8,0.04769759]
[1721030238536,3.0,3362.2,3361.8,0.04769759]
[1721030238537,5.96658949,3362.2,3362.1,1.7]
[1721030238694,2.96658949,3362.2,3362.1,1.7]
[1721030238900,2.96658949,3362.2,3362.1,1.74756832]
[1721030239088,5.96658949,3362.2,3362.1,1.74756832]
[1721030239292,5.96658949,3362.2,3362.1,1.7]
[1721030239530,5.96658949,3362.2,3362.1,1.74756832]
[1721030242609,5.96658949,3362.2,3362.1,1.7]
[1721030242927,1.085,3362.6,3362.1,1.7]
[1721030242928,0.62308949,3362.6,3362.5,1.7]
[1721030243150,2.4277,3362.7,3362.5,2.785]
[1721030243458,2.4277,3362.7,3362.5,1.7]
[1721030243637,2.4277,3362.7,3362.6,0.04733477]
[1721030244855,5.4277,3362.7,3362.6,0.04733477]
[1721030245216,5.4277,3362.7,3362.5,1.7]
[1721030253266,1.5,3362.8,3362.5,1.7]
[1721030253267,0.62205984,3363.1,3362.9,1.7]
[1721030253577,1.5,3363.0,3362.9,1.7]
[1721030255689,3.0,3363.1,3362.9,1.7]
[1721030258375,3.0,3363.1,3362.5,1.7]
[1721030258376,1.5,3363.0,3362.5,1.7]
[1721030258587,1.5,3363.0,3361.6,0.7061]
[1721030258588,1.5,3362.6,3362.1,1.7]
[1721030258906,1.5,3362.2,3361.7,1.7]
[1721030259270,1.5,3362.2,3361.7,1.87]
[1721030261567,1.5,3362.2,3361.8,0.03692863]
[1721030262378,1.5,3362.2,3362.1,1.7]
[1721030262791,1.5,3362.2,3362.1,1.73679935]
[1721030263314,2.3809,3362.3,3362.1,1.73679935]
[1721030263536,2.3809,3362.3,3362.1,1.91047929]
[1721030263828,0.62202286,3362.5,3362.1,1.91047929]
[1721030264121,0.62202286,3362.5,3362.1,1.87367994]
[1721030264426,0.62202286,3362.5,3362.2,0.03680998]
[1721030264921,0.62262495,3362.5,3362.2,0.03680998]
[1721030265223,0.62262495,3362.5,3362.2,0.33635897]
[1721030265413,6.27043742,3362.6,3362.2,0.33635897]
[1721030265414,0.62262495,3362.4,3362.2,0.33635897]
[1721030268295,2.3424,3362.3,3362.2,0.03680998]
[1721030268499,3.8424,3362.3,3362.2,0.03680998]
[1721030268731,5.80552669,3362.3,3362.1,1.7]
[1721030268936,4.77633742,3362.3,3362.1,1.7]
[1721030269137,0.93393742,3362.2,3362.1,1.7]
[1721030269344,1.96316265,3362.2,3362.1,1.7]
[1721030269636,4.77633742,3362.3,3362.1,1.7]
[1721030269831,0.93393742,3362.2,3362.1,1.7]
[1721030270599,1.96316692,3362.2,3362.1,1.7]
[1721030271214,0.93393742,3362.2,3362.1,1.7]
[1721030271534,5.0876499,3362.3,3362.1,1.7]
[1721030271535,4.77633742,3362.3,3362.1,1.7]
[1721030271723,0.93393742,3362.2,3362.1,1.7]
[1721030274367,3.9224,3361.8,3361.7,1.7]
[1721030274553,1.20798608,3362.2,3360.9,2.01771463]
[1721030274554,2.4224,3361.5,3360.9,2.16638173]
[1721030274730,3.04549957,3361.5,3360.9,2.16638173]
[1721030274907,2.43464936,3361.6,3360.9,1.7]
[1721030274908,1.5,3361.2,3360.9,1.7]
[1721030275114,2.4224,3361.0,3360.9,1.7]
[1721030279938,0.93464936,3361.5,3361.3,1.7]
[1721030279939,0.62309957,3361.5,3361.3,1.7]
[1721030280144,0.93464936,3361.7,3361.3,1.7]
[1721030280145,0.62309957,3361.7,3361.3,1.7]
[1721030280329,3.62309957,3361.7,3361.4,0.05949175]
[1721030280651,3.0,3361.7,3361.5,0.17594918]
[1721030281243,3.62309957,3361.7,3361.3,1.7]
[1721030281651,3.0,3361.7,3361.3,1.7]
[1721030282051,3.0,3361.7,3361.4,0.05949244]
[1721030282367,3.0,3361.7,3360.5,3.3081]
[1721030282368,2.87899957,3362.1,3361.7,1.7]
[1721030282532,3.0,3362.0,3361.8,0.17]
[1721030284765,2.2559,3362.1,3361.8,0.17]
[1721030285364,5.2559,3362.1,3361.8,0.17]
[1721030287666,5.2559,3362.1,3361.7,1.7]
[1721030288180,1.5,3361.9,3361.7,1.7]
[1721030289714,2.12187259,3361.9,3361.7,1.7]
[1721030289925,2.2862,3361.8,3361.7,1.7]
[1721030290709,3.7862,3361.8,3361.7,1.7]
[1721030290887,4.7703131,3361.8,3361.3,1.7]
[1721030291189,1.5,3361.5,3361.3,1.7]
[1721030291505,1.5,3361.5,3361.4,0.03502056]
[1721030291915,1.5,3361.5,3361.3,1.7]
[1721030292212,4.59872218,3361.5,3361.4,0.03502056]
[1721030292411,4.59872218,3361.5,3360.9,1.7]
[1721030292412,1.5,3361.3,3360.9,1.7]
[1721030295106,2.4095,3361.5,3360.9,1.7]
[1721030295306,2.4095,3361.5,3361.3,1.7]
[1721030297186,3.0,3361.7,3361.3,1.7]
[1721030297685,1.5,3361.6,3361.3,1.7]
[1721030298010,3.0,3361.7,3361.3,1.7]
[1721030298974,1.5,3361.6,3361.3,1.7]
[1721030300015,3.0,3361.7,3361.3,1.7]
[1721030300673,3.62190064,3361.7,3361.3,1.7]
[1721030300888,3.0,3361.7,3361.3,1.7]
[1721030301086,3.0,3361.7,3361.3,1.87]
[1721030301625,3.62190064,3361.7,3361.3,1.87]
[1721030301823,3.62190064,3361.7,3361.3,1.7]